Cogmind - Beta 11.1 *** ADVENTURER MODE // 2022.04.22 @ 19:20:32 Player: Chiefwannatoke Result: Self-destructed Performance ------------- Evolutions (1) 500 Regions Visited (3) 600 Robots Destroyed (11) 55 Value Destroyed (322) 322 Prototype IDs (1) 20 Alien Tech Used (0) 0 Bonus (200) 200 TOTAL SCORE: 1697 Bonus ------- Pacifist 200 Cogmind --------- Core Integrity 77/400 Matter 265/300 Energy 250/250 System Corruption 3% Temperature Danger (457) Movement Core (400) Ox7 Location -9/Mines Parts ------- > --- POWER (1) -------- Ion Engine > --- PROPULSION (3) --- (None) > --- UTILITY (3) ------ Medium Storage Unit Hardened Light Armor Plating > --- WEAPON (2) ------- Advanced Beam Cannon > --- INVENTORY (10) --- Ion Engine Light Ion Engine Light Treads Aluminum Leg Aluminum Leg Utility Shielding Beam Rifle Assault Rifle Peak State ------------ > --- POWER ------------ Ion Engine > --- PROPULSION ------- Light Treads Light Treads Wheel > --- UTILITY ---------- Heat Sink Medium Storage Unit Hardened Light Armor Plating > --- WEAPON ----------- Beam Rifle Advanced Beam Cannon > --- INVENTORY -------- Ion Engine Light Ion Engine Light Treads Aluminum Leg Aluminum Leg Beam Rifle Assault Rifle [Rating: 13] Favorites ----------- Power Ion Engine Engine Ion Engine Propulsion Light Treads Treads Light Treads Wheel Compact Wheel Utility Small Storage Unit Device Terrain Scanner Storage Small Storage Unit Protection Hardened Light Armor Plating Weapon Beam Rifle Energy Gun Beam Rifle Energy Cannon Advanced Beam Cannon Ballistic Gun Assault Rifle Build | -11 -10 -9 -9 ------- Run | Scr Mat Mat Min Slots Evolved 2 | . . 2 . Power . | . . . . Propulsion 1 | . . 1 . Utility 1 | . . 1 . Weapon . | . . . . Parts Attached 23 | 9 3 11 . Power 3 | 2 . 1 . Engine 3 | 2 . 1 . Core . | . . . . Reactor . | . . . . Propulsion 8 | 4 . 4 . Treads 4 | 1 . 3 . Leg . | . . . . Wheel 4 | 3 . 1 . Hover . | . . . . Flight . | . . . . Utility 6 | 1 1 4 . Device 3 | . 1 2 . Storage 2 | 1 . 1 . Processor . | . . . . Hackware . | . . . . Protection 1 | . . 1 . Artifact . | . . . . Weapon 6 | 2 2 2 . Energy Gun 3 | . 2 1 . Energy Cannon 1 | . . 1 . Ballistic Gun 2 | 2 . . . Ballistic Cannon . | . . . . Launcher . | . . . . Special Weapon . | . . . . Impact Weapon . | . . . . Slashing Weapon . | . . . . Piercing Weapon . | . . . . Special Melee Weapon . | . . . . Unidentified Prototypes 1 | . . 1 . Parts Lost 8 | . . 3 5 Power . | . . . . Propulsion 4 | . . 1 3 Utility 2 | . . 1 1 Weapon 2 | . . 1 1 Highest Loss Streak 5 | . . 2 5 To Critical Strikes . | . . . . Average Slot Usage (%) 96 | . 97 95 96 Engine 12 | . 14 11 11 Treads 19 | . 14 22 22 Wheel 11 | . 14 11 9 Device 14 | . 12 16 9 Storage 12 | . 14 11 11 Protection 1 | . . 1 11 Energy Gun 13 | . 4 19 11 Energy Cannon 2 | . . 2 11 Ballistic Gun 8 | . 22 . . Naked Turns . | . . . . Heaviest Build 28 | 14 17 28 28 Greatest Support 26 | 26 16 16 10 Greatest Overweight (x) 2 | 1 1 2 2 Average Overweight (x) . | . . 1 2 Largest Inventory Capacity 10 | 8 8 10 10 Average Capacity 8 | 7 8 8 10 Most Carried 8 | 6 7 8 8 Average Carried 5 | 3 6 5 8 Final Capacity 10 | 8 8 10 10 Final Carried 8 | 6 7 8 8 Class Distribution -------------------- 80% | Mutant 19% | Scavenger-Mutant Dominant Class ---------------- Mutant | -10/Materials Mutant | -9/Materials Scavenger-Mutant | -9/Mines Resources | -11 -10 -9 -9 ----------- Run | Scr Mat Mat Min Matter Collected 370 | 239 51 80 . Remotely . | . . . . Salvage Created 539 | . . 458 81 Parts 16 | . . 16 . Haulers Intercepted 2 | . . 2 . Recyclers Shooed . | . . . . Parts Field Recycled . | . . . . Retrieved Matter . | . . . . Parts Self-Destructed . | . . . . Prevented . | . . . . Kills | -11 -10 -9 -9 ------- Run | Scr Mat Mat Min Combat Hostiles Destroyed 13 | . . 8 5 Guns 9 | . . 7 2 Cannons 3 | . . . 3 Classes Destroyed 5 | . . 4 1 Worker 1 | . . 1 . Hauler 2 | . . 2 . Grunt 6 | . . 6 . Sentry 2 | . . 2 . Assembled 5 | . . . 5 Best Kill Streak 5 | . . 3 5 Combat Bots Only 5 | . . 3 5 Max Kills in Single Turn 2 | . . 2 1 Gunslinging 1 | . . 1 . Exploded . | . . . . Melee . | . . . . Uniques/NPCs Destroyed . | . . . . Combat | -11 -10 -9 -9 -------- Run | Scr Mat Mat Min Damage Taken 1280 | . . 740 540 Core 323 | . . 208 115 Absorbed by Shields 136 | . . 136 . Core Remaining (%) 100 | 100 100 . . Volleys Fired 37 | . . 29 8 Largest 2 | . . 2 2 Hottest 124 | . . 124 124 Shots Fired 73 | . . 58 15 Gun 64 | . . 57 7 Cannon 9 | . . 1 8 Launcher . | . . . . Special . | . . . . Kinetic . | . . . . Thermal 73 | . . 58 15 Explosive . | . . . . Electromagnetic . | . . . . Robot Hit Streak 14 | . . 14 7 Robot Miss Streak 2 | . . 2 2 Penetration Max . | . . . . Secondary Targets 3 | . . 3 . Max Gunslinging Chain 1 | . . 1 . Shots Hit Robots 58 | . . 47 11 Core Hits 24 | . . 17 7 Critical Kills . | . . . . Critical Parts Destroyed . | . . . . Critical Strikes 8 | . . 8 . Burn 8 | . . 8 . Melee Attacks . | . . . . Impact . | . . . . Slashing . | . . . . Piercing . | . . . . Sneak Attacks . | . . . . Combat Hostiles . | . . . . Follow-up Attacks . | . . . . Damage Inflicted 906 | . . 697 209 Guns 761 | . . 676 85 Cannons 145 | . . 21 124 Explosions . | . . . . Melee . | . . . . Ramming . | . . . . Kinetic . | . . . . Thermal 906 | . . 697 209 Explosive . | . . . . Electromagnetic . | . . . . Impact . | . . . . Slashing . | . . . . Piercing . | . . . . Highest Corruption 3 | . . . 3 Average Corruption 3 | . . . 3 Corruption Purged . | . . . . Corruption Blocked . | . . . . Overload Shots . | . . . . Overflow Damage . | . . . . Projectiles . | . . . . Explosions . | . . . . Melee . | . . . . Knockbacks . | . . . . Impact . | . . . . Kinetic . | . . . . Secondary . | . . . . Self-Inflicted Damage . | . . . . Shots . | . . . . Rammed . | . . . . Targets Rammed . | . . . . Kicked . | . . . . Crushed . | . . . . Highest Temperature 457 | . . 339 457 Average Temperature 134 | . . 119 209 Received Heat Transfer 476 | . . 396 80 Effects 5 | . . 3 2 Shutdowns 1 | . . . 1 Energy Bleed 1 | . . 1 . Interference 2 | . . 1 1 Damage (minor) 1 | . . 1 . Siege Activations . | . . . . Robots Corrupted . | . . . . Combat Hostiles . | . . . . Parts Fried . | . . . . Impact Corruptions . | . . . . Robots Melted 1 | . . 1 . Combat Hostiles 1 | . . 1 . Parts Melted 11 | . . 11 . Heat Transferred 2812 | . . 2368 444 Parts Sabotaged . | . . . . Parts Stolen . | . . . . Parts Stripped . | . . . . Power Chain Reactions . | . . . . Missiles Intercepted . | . . . . Alert | -11 -10 -9 -9 ------- Run | Scr Mat Mat Min Peak Influence 319 | . 39 319 42 Initial 42 | . . 13 42 Average 98 | . 7 183 37 Maximum Alert Level 1 | . . 1 . Low Security (%) 74 | 100 100 50 100 Level 1 25 | . . 49 . Level 2 . | . . . . Level 3 . | . . . . Level 4 . | . . . . Level 5 . | . . . . High Security . | . . . . Max Security . | . . . . Squads Dispatched 6 | . 1 5 . Investigation 4 | . 1 3 . Extermination . | . . . . Reinforcement 2 | . . 2 . Assault . | . . . . Garrison . | . . . . Intercept . | . . . . Searches Triggered . | . . . . Construction Impeded . | . . . . Haulers Reinforced . | . . . . Active Scanning Responses . | . . . . Cargo Convoy Interrupts . | . . . . Stealth | -11 -10 -9 -9 --------- Run | Scr Mat Mat Min Distress Signals 2 | . . 2 . Communications Jammed . | . . . . Distress Signals . | . . . . Times Spotted 33 | . 1 21 11 Peak Tracking Total 12 | . 1 9 12 Tactical Retreats 3 | . . 2 1 Traps | -11 -10 -9 -9 ------- Run | Scr Mat Mat Min Traps Triggered 3 | . 1 2 . Indirectly . | . . . . Trap Hack Attempts . | . . . . Triggered . | . . . . Disarmed . | . . . . Reprogrammed . | . . . . Reused . | . . . . Traps Extracted . | . . . . Installed . | . . . . Triggered . | . . . . Machines | -11 -10 -9 -9 ---------- Run | Scr Mat Mat Min Machines Disabled 1 | . . 1 . Max in Single Turn 1 | . . 1 . Machines Sabotaged . | . . . . Garrisons Compromised . | . . . . Overloaded Fab Kills . | . . . . Hacking | -11 -10 -9 -9 --------- Run | Scr Mat Mat Min Machines Accessed 3 | . 2 1 . Terminals 3 | . 2 1 . Fabricators . | . . . . Repair Stations . | . . . . Recycling Units . | . . . . Scanalyzers . | . . . . Garrison Access . | . . . . Total Hacks 10 | . 7 3 . Successful 5 | . 5 . . Failed 5 | . 2 3 . Catastrophic . | . . . . Database Lockouts . | . . . . Manual 4 | . 1 3 . Terminals 10 | . 7 3 . Fabricators . | . . . . Repair Stations . | . . . . Recycling Units . | . . . . Scanalyzers . | . . . . Garrison Access . | . . . . Terminal Hacks 4 | . 4 . . Security Status 1 | . 1 . . Hauler Manifests 1 | . 1 . . Registered Components 1 | . 1 . . Registered Prototypes 1 | . 1 . . Fabricator Hacks . | . . . . Repair Station Hacks . | . . . . Recycling Unit Hacks . | . . . . Scanalyzer . | . . . . Garrison Access Hacks . | . . . . Unauthorized Hacks 1 | . 1 . . Terminals 1 | . 1 . . Sabotage 1 | . 1 . . Fabricators . | . . . . Repair Stations . | . . . . Recycling Units . | . . . . Scanalyzers . | . . . . Garrison Access . | . . . . Data Cores Recovered . | . . . . Used . | . . . . Hacking Detections 3 | . 2 1 . Full Trace Events 1 | . . 1 . Feedback Events . | . . . . Feedback Blocked . | . . . . Robot Schematics Acquired . | . . . . Robots Built . | . . . . Authchips . | . . . . Time . | . . . . Total Robot Build Rating . | . . . . Part Schematics Acquired . | . . . . Parts Built . | . . . . Authchips . | . . . . Time . | . . . . Total Part Build Rating . | . . . . Parts Repaired . | . . . . Time . | . . . . Parts Recycled . | . . . . Recycled Matter . | . . . . Retrieved Matter . | . . . . Retrieved Components . | . . . . Parts Scanalyzed . | . . . . Part Schematics Acquired . | . . . . Parts Damaged . | . . . . Bothacking | -11 -10 -9 -9 ------------ Run | Scr Mat Mat Min Used RIF Installer . | . . . . Robots Hacked . | . . . . Non-combat . | . . . . Combat . | . . . . Robot Hacks Applied . | . . . . Relay Couplers Released . | . . . . Fabnet Peak Effective % . | . . . . Robots Rewired . | . . . . Allies Hacked . | . . . . Hacks Repelled . | . . . . Allies | -11 -10 -9 -9 -------- Run | Scr Mat Mat Min Total Allies . | . . . . Largest Group . | . . . . Highest-Rated Group . | . . . . Highest-Rated Ally . | . . . . Total Orders . | . . . . Ally Attacks . | . . . . Total Damage . | . . . . Kills . | . . . . Allies Corrupted . | . . . . Allies Melted . | . . . . Intel | -11 -10 -9 -9 ------- Run | Scr Mat Mat Min Robot Analysis Total . | . . . . Derelict Logs Recovered . | . . . . Drone Launches . | . . . . Drone Recoveries . | . . . . Exploration | -11 -10 -9 -9 ------------- Run | Scr Mat Mat Min Turns Passed 847 | 66 285 429 67 Spaces Moved 544 | 50 165 290 39 Core 2 | 2 . . . Treads . | . . . . Legs . | . . . . Wheels 542 | 48 165 290 39 Hover . | . . . . Flight . | . . . . Fastest Speed 50 | 50 100 95 110 Average Speed 106 | 95 103 110 110 Slowest Speed 115 | 100 115 115 110 Overloaded Moves . | . . . . Propulsion Burnouts . | . . . . Robots Hopped . | . . . . Cave-ins Triggered . | . . . . Exploration Rate (%) 19 | 5 33 28 10 Regions Visited 3 Branch Regions 1 Pre-discovered Areas . | . . . . Known Exits Taken . | . . . . Unknown Exits Taken 3 | 1 1 1 . Scrap Searched . | . . . . Spaces Dug . | . . . . Terrain Destroyed . | . . . . Melee . | . . . . Projectile . | . . . . AOE . | . . . . Terrain Rammed . | . . . . Walls Destroyed . | . . . . Machines Disabled . | . . . . Actions | -11 -10 -9 -9 --------- Run | Scr Mat Mat Min Total 729 | 63 278 340 48 Wait 113 | . 108 4 1 Move 541 | 49 164 289 39 Hop . | . . . . Pick Up 7 | 5 1 1 . Fast Attach 14 | 6 3 5 . Attach 4 | . . 4 . Detach 2 | . . 2 . Swap 6 | 3 . 3 . Drop 5 | . 2 3 . Fire 37 | . . 29 8 Melee . | . . . . Ram . | . . . . Kick . | . . . . Crush . | . . . . Escape Stasis . | . . . . Rewire . | . . . . Trap . | . . . . Miscellaneous . | . . . . Route ------- -11/Scrapyard -10/Materials -9/Materials -9/Mines History --------- Turn | Location | Event 22 | -11/Scrapyard | Discovered new exit (range 15) 67 | -11/Scrapyard | Entered Materials 311 | -10/Materials | Discovered new exit (range 15) 327 | -10/Materials | Build established: Mutant 352 | -10/Materials | Entered another Materials area 352 | -9/Materials | Evolved 2 slots: Propulsion x1, Utility x1 762 | -9/Materials | Core integrity fell below 50% 765 | -9/Materials | Discovered new exit (range 15) 781 | -9/Materials | Entered Mines 789 | -9/Mines | Assembled infested the area 848 | -9/Mines | Core integrity fell below 20% 848 | -9/Mines | Self-destructed Last Messages --------------- Something is scanning the area. 00782_ K-01 Serf collects debris. 00788_ K-01 Serf cleans the Laser Drill. 00789_ ALERT: Infestation in the mines, dispatching Demolisher response squad. 00813_ Knocked back. 00824_ as-23332 destroyed. 00830_ as-31094 suffers critical hit (Destroy). 00830_ as-00495 destroyed. 00833_ as-31094 destroyed. 00834_ Wheel destroyed. 00834_ System corrupted by crushing effect (+3). 00836_ Heat Sink destroyed. 00837_ as-24147 destroyed. 00843_ as-50883 destroyed. 00845_ Beam Rifle destroyed. 00847_ Overheating: System interference. 00847_ Adv. Beam Cannon temporarily disabled. 00848_ Power failure, Ion Engine shutdown. 00848_ Lgt. Treads destroyed. Map ----- +----------------------------------------------------+ | ? """ #????????# #????????????? | | ??? """ ########## ##???????????? | | ??????# """ #???????????? | | ??????# ########### #???????????? | | ??????# #?????????# #???????????? | | ??????# #?????????# #???????????? | | ??????#######?????????# #???????????? | | ??????????????????????# #???????????? | | ??????????????????????# #???????????? | | ??????????????????????# #???????????? | | ??????????????????????# #???????????? | | ??????????????????????# #???????????? | | ??????????????????????# #???????????? | | ??????????????????????# #???????????? | | ??????????????????????# #???????????? | | ??????????????????????# #???????????? | | ??????????????????????# ######??????? | | ??????????????????????# #??????? | | ??????????????????????###### #??????? | | ??????????????????????? # #??????? | | ???????????????????????? # #??????? | | ????????????????????????# # #??????? | | ????????????????????????# # #??????? | | ????????????????????????# # ##?????? | | ?????????????????######## %# ##????? | | ?????????????# @%% #????? | | ?????????????????# ##### %aa a#????? | | ???????????????????????# a #????? | | ???????????????????????# ##????? | | ???????????????????????## ###?????? | | ????????????????????????#####???????? | | ????????????????????????????????????? | | | | | | | | | | | | | | | | | | | | | | | | | | | | | | | | | | | | | +----------------------------------------------------+ Best States ------------- Heat Dissipation 38 Energy Generation 10 Energy Capacity 250 Matter Stores 300 Matter Capacity 300 Sight Range 16 Terrain Scan Range 14 Terrain Scan Density 10 Armor Coverage 150 Resistance: KI 20 Resistance: TH 20 Resistance: EX 20 Resistance: EM 20 Resistance: I 20 Resistance: S 20 Resistance: P 20 Evasion (%) 42 Recoil Reduction 2 Offensive Hacking 10 Item Schematics ----------------- None Robot Schematics ------------------ None Fabricated ------------ Nothing Alien Tech Used ----------------- None Achievements -------------- None Challenges ------------ None Game ------ Seed SmartbombThiefReconfigurator Manual? 0 Play Time 00:11:45 Cumulative 51.5 hours Start 2022.04.22 @ 19:05:21 End 2022.04.22 @ 19:20:32 Sessions 1 Manual Loads 0 Difficulty Adventurer Special Mode None Game No. 56 Rogue 35 Adventurer 19 Explorer 2 Win Type - Total 0 Types 0/0/0/0/0/0/0/0/0 Lore% 54 Gallery% 56 Achievement% 48 Wizard Run 0 Options --------- ASCII 0 Keyboard 0 Movement Numpad Keybinds 0 Fullscreen 1 Font 18/SmallcapsGlow Map View 76x50 Tactical HUD 1 Map Filters NONE Filters NONE Steam 1 RUN: 01a736ff-e246-4190-be80-017a1c2b3c1f